[Event "French Top 16-A 2024"]
[Site "Chartres"]
[Date "2024.06.02"]
[Round "4.10"]
[White "Albornoz Cabrera, Carlos Daniel"]
[Black "Ter-Sahakyan, Samvel"]
[Result "0-1"]
[ECO "B97"]
[WhiteElo "2612"]
[BlackElo "2652"]
[Annotator "TA"]
[PlyCount "76"]
[EventDate "2024.06.01"]
[EventType "team-tourn"]
[EventCountry "FRA"]
[SourceTitle "playchess.com"]
[Source "ChessBase"]
[SourceQuality "1"]
[TimeControl "40/5400+30:1800+30"]

{[%evp 16,76,12,-9,0,0,0,0,1,-12,0,0,14,0,18,14,14,29,21,0,0,-9,-10,-26,-20,-18,-22,-19,-16,-20,0,0,0,0,6,-451,-441,-429,-391,-708,-695,-1050,-1060,-1050,-1035,-1024,-1027,-1029,-1026,-848,-801,-779,-627,-601,-569,-497,-376,-352,-343,-630,-629,-607,-594]} 1. e4 {[%emt 0:00:03]} c5 {[%emt 0:00:05]} 2. Nf3 {[%emt 0:00:04]} d6 {[%emt 0:00:03]} 3. d4 {[%emt 0:00:04]} cxd4 {[%emt 0:00:04]} 4. Nxd4 {[%emt 0:00:04]} Nf6 {[%emt 0:00:04]} 5. Nc3 {[%emt 0:00:05]} a6 {[%emt 0:00:03]} 6. Bg5 {[%emt 0:00:05]} e6 {[%emt 0:00:04]} 7. f4 {[%emt 0:00:04]} Qb6 {[%emt 0:00:04]} 8. Nb3 {[%emt 0:00:03]} Nbd7 {[%emt 0:02:30]} 9. Qd2 {[%emt 0:00:58]} Qc7 {[%emt 0:06:03]} 10. O-O-O {[%emt 0:00:31]} b5 {[%emt 0:01:03] And now ...b4 would win.} 11. a3 {[%emt 0:00:15][%cal Og2g4]} Bb7 {[%emt 0:03:48] The position is equal.} 12. Bd3 {[%emt 0:01:03]} Be7 {[%emt 0:05:16]} 13. Qe1 {[%emt 0:02:43]} Rd8 {[%emt 0:18:43]} 14. Rf1 {[%emt 0:13:12]} Nc5 {[%emt 0:12:16]} 15. Nxc5 {[%emt 0:02:31]} dxc5 {[%emt 0:00:20][%cal Bd6c5,Bc5c4][%mdl 32]} 16. e5 {[%emt 0:01:33]} c4 {[%emt 0:08:42]} 17. Be2 {[%emt 0:28:38]} Rxd1+ {[%emt 0:05:35]} 18. Bxd1 {[%emt 0:03:20]} Nd5 {[%emt 0:01:23]} 19. Nxd5 {[%emt 0:05:39]} Bxd5 {[%emt 0:00:41]} 20. Bxe7 {[%emt 0:00:05]} Qxe7 {[%emt 0:00:30]} 21. Qe3 {[%emt 0:03:20]} O-O {[%emt 0:01:30]} 22. g4 {[%emt 0:00:49]} b4 {[%emt 0:12:55]} 23. axb4 {[%emt 0:13:29]} Qxb4 {[%emt 0:00:35]} 24. c3 {[%emt 0:00:29]} Qa5 {[%emt 0:03:47]} 25. Bc2 $2 {[%emt 0:00:06][%mdl 8192] Now White is beyond hope.} (25. Kb1 $1 $11) 25... Qa1+ $19 {[%emt 0:02:14]} 26. Bb1 {[%emt 0:00:13] [#] Threatens to win with f5.} a5 $1 {[%emt 0:00:44]} ({Not} 26... Rb8 27. Rf2 $11) 27. Re1 $2 {[%emt 0:06:26]} (27. Rd1) 27... Rb8 {[%emt 0:02:27]} 28. Re2 {[%emt 0:00:07] [#]} a4 $1 {[%emt 0:00:28]} 29. Qa7 {[%emt 0:11:29]} Ra8 {[%emt 0:00:17]} 30. Qb6 {[%emt 0:00:43]} a3 {[%emt 0:01:40]} 31. bxa3 {[%emt 0:00:15]} Qxc3+ {[%emt 0:01:10]} 32. Bc2 {[%emt 0:00:02]} Qxa3+ {[%emt 0:01:51]} ({Stronger than} 32... Rxa3 33. Qd8#) 33. Kd2 {[%emt 0:00:03]} Qf3 {[%emt 0:05:42] ( -> ...c3+)} 34. Qe3 {[%emt 0:00:46]} Qxg4 {[%emt 0:00:18]} 35. Qg3 {[%emt 0:01:02]} h5 {[%emt 0:01:30]} 36. Re3 {[%emt 0:00:35]} Ra2 {[%emt 0:01:10] White must now prevent ...Qf5.} 37. Qf2 $2 {[%emt 0:00:33]} (37. Qxg4 hxg4 38. Kc3) 37... Qf5 {[%emt 0:01:22]} 38. Kc1 {[%emt 0:00:12] [#]} Be4 $1 {[%emt 0:00:48][%mdl 512] Weighted Error Value: White=0.54/Black=0.22 (precise) .  Loses game:     	White=1     	---        Mistake:       	White=2     	---        Inaccurate:     	White=2     	---        OK:         	White=9     	Black=8      Best:        	White=2     	Black=2      Strong:       	---       	Black=1} 0-1

[Event "French Top 16-A 2024"]
[Site "Chartres"]
[Date "2024.06.02"]
[Round "4.10"]
[White "Alonso Rosell, Alvar"]
[Black "Van Wely, Loek"]
[Result "0-1"]
[ECO "E32"]
[WhiteElo "2556"]
[BlackElo "2608"]
[Annotator "TA"]
[PlyCount "76"]
[EventDate "2024.06.01"]
[EventType "team-tourn"]
[EventCountry "FRA"]
[SourceTitle "playchess.com"]
[Source "ChessBase"]
[SourceQuality "1"]
[TimeControl "40/5400+30:1800+30"]

{[%evp 14,76,4,8,0,0,11,19,8,0,6,0,41,-11,31,11,70,39,50,53,39,0,0,0,-5,-7,0,-3,0,-70,-69,-82,-67,-92,-97,-142,-148,-247,-239,-253,-236,-271,-256,-313,-302,-426,-458,-472,-472,-492,-485,-466,-485,-657,-666,-1187,-1178,-1078,-1052,-919,-841,-750,-740,-3514,-2283]} 1. d4 {[%emt 0:29:32]} Nf6 {[%emt 0:00:15]} 2. c4 {[%emt 0:00:18]} e6 {[%emt 0:00:14]} 3. Nc3 {[%emt 0:04:37]} Bb4 {[%emt 0:00:34]} 4. Qc2 {[%emt 0:00:46]} O-O {[%emt 0:06:51]} 5. a3 {[%emt 0:03:49]} Bxc3+ {[%emt 0:00:24]} 6. Qxc3 {[%emt 0:00:02]} b6 {[%emt 0:00:37]} 7. Bg5 {[%emt 0:02:39]} Bb7 {[%emt 0:01:47]} 8. e3 {[%emt 0:02:47]} d6 {[%emt 0:02:24]} 9. Ne2 {[%emt 0:00:12]} Nbd7 {[%emt 0:01:01]} 10. Qd3 {[%emt 0:01:24]} c5 {[%emt 0:07:47] The position is equal.} 11. Rd1 {[%emt 0:02:48]} Rc8 {[%emt 0:06:08]} 12. Nc3 {[%emt 0:02:18]} Qe7 {[%emt 0:13:39]} 13. Be2 {[%emt 0:12:05]} (13. Bh4 $14) 13... Ba6 {[%emt 0:09:56]} 14. e4 {[%emt 0:22:38]} Rfd8 {[%emt 0:19:20]} ({Black should play} 14... h6 $11 15. Bh4 g5) 15. d5 {[%emt 0:07:31]} h6 {[%emt 0:02:06]} (15... Ne5 16. Qg3 Ng6 (16... Nxc4 $2 17. O-O $18) (16... Bxc4 $2 17. f4 $18) 17. O-O $16) 16. Bh4 {[%emt 0:02:03]} Ne5 {[%emt 0:01:17][%csl LRc4,LRd3]} 17. Qc2 {[%emt 0:02:40]} Bxc4 {[%emt 0:01:28]} 18. Bxc4 {[%emt 0:00:47]} Nxc4 {[%emt 0:00:03] A dynamic duo of knights.} 19. dxe6 {[%emt 0:00:26]} fxe6 {[%emt 0:01:40]} ({Don't play} 19... Qxe6 $6 20. Bxf6 gxf6 (20... Qxf6 $2 {too greedy.} 21. Nd5 $18) 21. O-O $16) 20. O-O $1 {[%emt 0:00:06]} Qf7 $36 {[%emt 0:08:08][%mdl 2048] White is under pressure.} 21. Nb5 {[%emt 0:00:43]} ({Better is} 21. Qe2 $11 Ne5 22. Nb5) 21... d5 $15 {[%emt 0:00:13]} 22. b3 {[%emt 0:00:12] [#] White is on the road to losing.} Ne5 {[%emt 0:00:17]} 23. exd5 {[%emt 0:01:02]} exd5 {[%emt 0:01:09]} 24. Bg3 {[%emt 0:00:24]} a6 $1 {[%emt 0:01:18]} 25. Na7 {[%emt 0:00:38]} (25. Nd6 $17 {was worth a try.} Rxd6 26. Bxe5) 25... Nf3+ $1 $19 {[%emt 0:01:06]} (25... Qxa7 26. Bxe5 Qf7 27. Qd3 $15) 26. gxf3 {[%emt 0:00:02]} Qxa7 {[%emt 0:00:08]} 27. Be5 {[%emt 0:00:46]} Qf7 {[%emt 0:00:35]} 28. Qf5 {[%emt 0:00:29]} d4 {[%emt 0:01:00]} 29. Qd3 {[%emt 0:00:02]} (29. Rfe1 {is a better defense.}) 29... b5 {[%emt 0:01:38] Black is clearly winning.} 30. Rfe1 {[%emt 0:00:21]} c4 {[%emt 0:01:41]} 31. bxc4 {[%emt 0:00:01]} bxc4 {[%emt 0:00:06]} 32. Qf5 {[%emt 0:00:04]} d3 {[%emt 0:01:56]} 33. Ba1 {[%emt 0:00:02]} Nd5 {[%emt 0:01:18]} 34. Qg4 {[%emt 0:00:02]} Rc6 {[%emt 0:00:47] [#] And now ...Rg6 would win.} 35. Kh1 {[%emt 0:00:11]} Rg6 {[%emt 0:00:55]} 36. Qe4 {[%emt 0:00:01]} Kh7 {[%emt 0:03:13][%cal Od8e8] ...Re8! is the strong threat.} 37. Rg1 {[%emt 0:03:27]} Re8 {[%emt 0:00:19]} 38. Rxg6 {[%emt 0:00:16]} Rxe4 {[%emt 0:00:26] Weighted Error Value: White=0.63/Black=0.11 (very precise) .  Mistake:       	White=4     	Black=1      Inaccurate:     	White=5     	Black=2      OK:         	White=7     	Black=13     Best:        	White=1     	Black=3      Strong:       	White=1     	Black=1} 0-1

[Event "French Top 16-A 2024"]
[Site "Chartres"]
[Date "2024.06.02"]
[Round "4.11"]
[White "Pichot, Alan"]
[Black "Girel, Joseph"]
[Result "1/2-1/2"]
[ECO "B33"]
[WhiteElo "2635"]
[BlackElo "2477"]
[Annotator "TA"]
[PlyCount "47"]
[EventDate "2024.06.01"]
[EventType "team-tourn"]
[EventCountry "FRA"]
[SourceTitle "playchess.com"]
[Source "ChessBase"]
[SourceQuality "1"]
[TimeControl "40/5400+30:1800+30"]

{[%evp 25,47,0,7,0,22,11,12,11,0,4,6,0,0,-2,-6,-33,-33,-33,-29,-26,-23,-27,-31,-24]} 1. e4 {[%emt 0:00:10]} c5 {[%emt 0:00:25]} 2. Nf3 {[%emt 0:00:08][%cal Bg1f3,Bf3d4,Bd4b5][%mdl 32]} Nc6 {[%emt 0:00:10]} 3. d4 {[%emt 0:00:20]} cxd4 {[%emt 0:00:11]} 4. Nxd4 {[%emt 0:00:07]} Nf6 {[%emt 0:00:20]} 5. Nc3 {[%emt 0:00:08]} e5 {[%emt 0:00:20]} 6. Ndb5 {[%emt 0:00:13]} d6 {[%emt 0:00:09]} 7. Nd5 {[%emt 0:00:20]} Nxd5 {[%emt 0:00:11]} 8. exd5 {[%emt 0:00:05]} Nb8 {[%emt 0:00:19]} 9. c4 {[%emt 0:00:22]} Be7 {[%emt 0:01:01]} 10. Bd3 {[%emt 0:00:46]} O-O {[%emt 0:01:42]} 11. O-O {[%emt 0:01:47]} a6 {[%emt 0:01:15]} 12. Nc3 {[%emt 0:00:33]} f5 {[%emt 0:00:15]} 13. f3 {[%emt 0:00:45]} Nd7 {[%emt 0:00:34]} 14. a3 {[%emt 0:00:35]} Qb6+ {[%emt 0:00:49]} 15. Kh1 {[%emt 0:00:31]} Qd4 {[%emt 0:00:05]} 16. Ne2 {[%emt 0:03:21] The position is equal.} Qh4 {[%emt 0:00:17]} 17. Bd2 {[%emt 0:01:07]} Bg5 {[%emt 0:07:30]} 18. g3 {[%emt 0:11:29]} Qh6 {[%emt 0:02:08]} 19. f4 {[%emt 0:04:32]} exf4 {[%emt 0:00:35]} 20. gxf4 {[%emt 0:07:18]} Bf6 {[%emt 0:08:41]} 21. Bc3 {[%emt 0:19:28]} Nc5 {[%emt 0:02:50]} 22. Bxf6 {[%emt 0:02:08]} Rxf6 {[%emt 0:11:45]} 23. Ng3 {[%emt 0:08:06]} Bd7 {[%emt 0:01:23]} 24. b4 {[%emt 0:03:23] Weighted Error Value: White=0.05 (flawless) /Black=0.02 (flawless) .  Inaccurate:     	White=1     	---        OK:         	White=3     	Black=5      Best:        	White=1     	---} 1/2-1/2

[Event "French Top 16-A 2024"]
[Site "Chartres"]
[Date "2024.06.02"]
[Round "4.11"]
[White "Gharamian, Tigran"]
[Black "Ramirez Garcia, Jorge Alberto"]
[Result "1-0"]
[ECO "B40"]
[WhiteElo "2588"]
[BlackElo "2266"]
[Annotator "TA"]
[PlyCount "85"]
[EventDate "2024.06.01"]
[EventType "team-tourn"]
[EventCountry "FRA"]
[SourceTitle "playchess.com"]
[Source "ChessBase"]
[SourceQuality "1"]
[TimeControl "40/5400+30:1800+30"]

{[%evp 9,85,15,42,40,65,60,64,52,73,66,64,68,71,75,73,78,75,71,187,210,202,129,213,204,193,208,299,292,300,291,299,295,279,238,232,245,398,327,339,327,387,279,314,318,322,314,333,342,339,320,335,313,323,302,302,307,358,350,570,567,692,671,751,716,1731,1708,1875,1534,1633,1262,1716,1233,6079,5620,29977,29979,29982,29983]} 1. e4 {[%emt 0:00:03]} c5 {[%emt 0:05:06]} 2. Nf3 {[%emt 1:31:27]} e6 {[%emt 0:00:40]} 3. g3 {[%emt 0:00:00]} d5 {[%emt 0:00:34]} 4. Nc3 {[%emt 0:00:00]} dxe4 {[%emt 0:09:30]} 5. Nxe4 {[%emt 0:00:00]} Be7 {[%emt 0:00:12]} 6. d4 {[%emt 0:00:00]} cxd4 {[%emt 0:00:27]} 7. Qxd4 {[%emt 0:00:00]} Qxd4 {[%emt 0:06:27]} 8. Nxd4 {[%emt 0:00:00] White is slightly better.} a6 {[%emt 0:11:41] Repels Nb5} 9. Be3 {[%emt 0:00:00] White has more active pieces.} e5 {[%emt 0:08:41]} 10. Nb3 {[%emt 0:00:00]} Nc6 {[%emt 0:02:15]} 11. O-O-O {[%emt 0:00:00] White now steadily converts the win.} Bg4 {[%emt 0:00:47][%cal Og4f3] [#] Strongly threatening ...Bf3!} 12. Nd6+ {[%emt 0:00:00]} Kf8 {[%emt 0:03:22]} 13. Rd2 {[%emt 0:00:00] And now Bg2 would win.} Nd4 {[%emt 0:13:19]} 14. Nxd4 $18 {[%emt 0:00:00]} (14. Nxb7 $2 Nxb3+ 15. axb3 Bf3 $19) 14... Bxd6 {[%emt 0:02:12]} 15. Ne6+ {[%emt 0:00:00]} Ke7 {[%emt 0:12:36]} (15... fxe6 $16 {might work better.} 16. Rxd6 Bf3) 16. Nxg7 {[%emt 0:00:00]} Bb4 {[%emt 0:00:07]} 17. c3 {[%emt 0:00:00]} Rc8 {[%emt 0:00:15]} (17... Bf3 {keeps fighting.}) 18. Bg2 {[%emt 0:00:00]} Bc5 {[%emt 0:02:58]} 19. h3 {[%emt 0:00:00]} Bxe3 {[%emt 0:01:27]} 20. fxe3 {[%emt 0:00:00]} Bd7 {[%emt 0:00:23]} 21. Bxb7 {[%emt 0:00:00]} Rc7 {[%emt 0:00:18]} 22. Be4 {[%emt 0:00:00]} Kf6 $2 {[%emt 0:01:07] [#]} (22... Nf6 {was worth a try.} 23. Nf5+ Bxf5 24. Bxf5 h5) 23. Nf5 $1 {[%emt 0:00:00][%mdl 512]} Bxf5 {[%emt 0:02:26]} 24. Rf1 {[%emt 0:00:00]} Ne7 {[%emt 0:00:08]} 25. Bxf5 {[%emt 0:00:00]} (25. Rd6+ Kg5 26. Bxf5 Nxf5 27. Rxa6 Rc4 $17 (27... Nxe3 28. Re1 $11) (27... Nxg3 28. Rg1 $11)) 25... Nxf5 {[%emt 0:00:22]} 26. Rdf2 {[%emt 0:00:00]} Ke6 {[%emt 0:00:47]} 27. Rxf5 {[%emt 0:00:00][%mdl 4096] Endgame. KRR-KRR} h5 {[%emt 0:01:16]} 28. e4 {[%emt 0:00:00]} Rh6 {[%emt 0:00:07]} 29. Kd2 {[%emt 0:00:00]} f6 {[%emt 0:00:07]} 30. R1f3 {[%emt 0:00:00]} Rg7 {[%emt 0:00:56]} 31. Ke2 {[%emt 0:00:00]} Rhg6 {[%emt 0:00:25]} 32. b4 {[%emt 0:00:00][%cal Bb2b4,Bb4b5][%mdl 32]} ({Weaker is} 32. Rxh5 Rxg3 33. Rh8 Rg8 34. Rxg8 Rxg8 $16) 32... a5 {[%emt 0:01:35]} 33. b5 {[%emt 0:00:00]} (33. bxa5 Ra7 34. c4 (34. Rxh5 Rxa5 35. Kd3 Rxa2 $18) 34... Rxa5 $16) 33... a4 $2 {[%emt 0:00:34]} (33... Kd6 34. Rxf6+ (34. Rxh5 Kc5 $18) 34... Rxf6 35. Rxf6+ Kc5) 34. Kd3 {[%emt 0:00:00]} Rxg3 {[%emt 0:04:00]} 35. Rxf6+ {[%emt 0:00:00]} Ke7 {[%emt 0:00:03]} 36. Kc4 {[%emt 0:00:00]} Rxh3 {[%emt 0:01:34]} 37. Rxh3 {[%emt 0:00:00]} Kxf6 {[%emt 0:00:02]} 38. Rxh5 {[%emt 0:00:00] aiming for b6. KR-KR} Rg2 {[%emt 0:00:16]} 39. a3 {[%emt 0:01:11] b6 is the strong threat.} Rb2 {[%emt 0:01:09]} 40. Rh6+ {[%emt 0:01:53]} Kg5 {[%emt 0:00:06]} 41. Ra6 {[%emt 0:30:04]} Kf4 {[%emt 0:30:10]} 42. Rxa4 {[%emt 0:00:05]} Kxe4 {[%emt 0:00:37]} 43. Rb4 {[%emt 0:00:25] Weighted Error Value: White=0.14 (very precise) /Black=0.55.  Mistake:       	---       	Black=5      Inaccurate:     	White=1     	---        OK:         	White=14    	Black=11     Best:        	White=4     	---} 1-0

[Event "French Top 16-A 2024"]
[Site "Chartres"]
[Date "2024.06.02"]
[Round "4.12"]
[White "Kunin, Vitaly"]
[Black "Fedorchuk, Sergey A."]
[Result "0-1"]
[ECO "E12"]
[WhiteElo "2525"]
[BlackElo "2546"]
[Annotator "TA"]
[PlyCount "92"]
[EventDate "2024.06.01"]
[EventType "team-tourn"]
[EventCountry "FRA"]
[SourceTitle "playchess.com"]
[Source "ChessBase"]
[SourceQuality "1"]
[TimeControl "40/5400+30:1800+30"]

{[%evp 24,92,0,0,0,0,12,0,36,45,38,32,45,37,49,30,42,0,0,0,38,0,0,0,35,-181,-181,-443,-443,-405,-433,-445,-449,-446,-409,-466,-438,0,-373,-434,-458,-450,-456,-447,-438,-475,-473,-485,-467,-488,-477,-572,-475,-506,-481,-625,-611,-662,-656,-646,-635,-902,-883,-1004,-1004,-1004,-1004,-983,-984,-977,-950]} 1. d4 {[%emt 0:00:04]} Nf6 {[%emt 0:00:15]} 2. c4 {[%emt 0:00:31]} e6 {[%emt 0:00:29]} 3. Nf3 {[%emt 0:00:23]} b6 {[%emt 0:01:11]} 4. a3 {[%emt 0:00:36]} Bb7 {[%emt 0:00:38]} 5. Nc3 {[%emt 0:00:32]} d5 {[%emt 0:00:27]} 6. cxd5 {[%emt 0:00:36]} Nxd5 {[%emt 0:00:13]} 7. Qc2 {[%emt 0:00:32]} Be7 {[%emt 0:15:55]} 8. e4 {[%emt 0:00:29]} Nxc3 {[%emt 0:00:14]} 9. bxc3 {[%emt 0:00:13]} O-O {[%emt 0:00:14]} 10. Bd3 {[%emt 0:00:24]} c5 {[%emt 0:00:17]} 11. O-O {[%emt 0:00:11]} Qc8 {[%emt 0:04:15]} 12. Qe2 {[%emt 0:01:05]} Ba6 {[%emt 0:08:53]} 13. Rd1 {[%emt 0:00:45]} cxd4 {[%emt 0:05:35]} 14. cxd4 {[%emt 0:00:27]} Bxd3 {[%emt 0:00:05]} 15. Rxd3 {[%emt 0:00:13]} Nd7 {[%emt 0:00:17] The position is equal.} 16. e5 {[%emt 0:00:09]} Qc4 {[%emt 0:03:51]} 17. Bg5 {[%emt 0:02:48]} Bxg5 {[%emt 0:11:00]} 18. Nxg5 {[%emt 0:00:24]} Rac8 {[%emt 0:00:08]} 19. Rad1 {[%emt 0:03:14]} Rc6 {[%emt 0:14:13]} 20. Qh5 {[%emt 0:19:40][%csl Gg5][%cal Rh5h7]} h6 {[%emt 0:01:50]} 21. Ne4 {[%emt 0:00:34]} Qd5 {[%emt 0:09:21]} (21... Nxe5 $5 22. Nf6+ (22. Qxe5 $2 Qxd3 23. Rf1 Qxa3 $19) 22... gxf6 23. dxe5 Kh7 $16 (23... Qf4 24. Rf3 $14)) 22. Nc3 {[%emt 0:08:37]} Qa5 {[%emt 0:01:50][%csl LRa3,LRc3]} 23. Ne4 {[%emt 0:02:35] aiming for Rg3.} Qd5 {[%emt 0:00:54]} 24. Qh4 {[%emt 0:01:54]} (24. Qe2 $14) 24... Nxe5 $1 $19 {[%emt 0:05:37]} 25. Nf6+ $2 {[%emt 0:20:13]} (25. dxe5 $2 Qxd3 26. Qg4 (26. Nf6+ $2 gxf6 27. Qg4+ Qg6 $19) 26... Qxd1+ (26... Qxa3 $2 27. Nf6+ Kh8 28. Qe4 $19) 27. Qxd1 Rfc8 $19) (25. Nc3 Qc4 26. Rg3) 25... gxf6 {[%emt 0:00:19]} 26. Rg3+ {[%emt 0:00:04] [#]} (26. dxe5 $2 Qxd3 (26... Qxe5 $2 27. Qxh6 Rc3 28. Rd8 $18) 27. Qg4+ Qg6) 26... Ng6 $1 {[%emt 0:08:30]} 27. Qxh6 {[%emt 0:00:08]} Rfc8 {[%emt 0:05:03]} 28. h4 {[%emt 0:00:12] Black must now prevent h5.} Rc3 {[%emt 0:01:31]} 29. Rg4 {[%emt 0:04:26]} R3c5 {[%emt 0:00:21]} (29... Rxa3 $2 30. h5 Ra5 (30... Qf5 31. hxg6 fxg6 32. Rxg6+) 31. hxg6 $18) (29... Qf5 30. f3 $11) 30. Rxg6+ {[%emt 0:06:46]} fxg6 {[%emt 0:00:03]} 31. Qxg6+ {[%emt 0:00:06]} Kf8 {[%emt 0:00:02] Black is clearly winning.} 32. Qxf6+ {[%emt 0:00:07]} Ke8 {[%emt 0:00:04]} 33. Re1 {[%emt 0:01:09] [#]} R5c6 {[%emt 0:00:33]} 34. Re5 {[%emt 0:02:40]} Qd6 {[%emt 0:00:44]} (34... Qxd4 $2 35. Rxe6+ Rxe6 36. Qxd4 $18) 35. g3 {[%emt 0:05:12] d5 would now be deadly.} Qe7 {[%emt 0:00:27]} (35... Qxd4 $2 36. Rxe6+ Rxe6 37. Qxd4 $18) 36. Qh6 {[%emt 0:01:01]} Kd7 {[%emt 0:01:48]} (36... Qxa3 $2 37. Rg5 Rc1+ (37... Qf8 $2 38. Rg7 $18) 38. Kg2 $19) 37. h5 {[%emt 0:05:19]} Rd6 {[%emt 0:01:08]} 38. Qe3 {[%emt 0:07:10]} Qf6 {[%emt 0:00:25]} 39. Re4 {[%emt 0:00:41]} Qf5 {[%emt 0:00:41]} 40. h6 {[%emt 0:01:46]} Rh8 {[%emt 0:00:30][%cal Oh8h6] Hoping for ...Rxh6!} 41. Rh4 {[%emt 0:33:31]} Rd5 {[%emt 0:30:34]} 42. Qb3 {[%emt 0:01:05]} Rb5 {[%emt 0:00:21]} 43. Qa4 {[%emt 0:00:00]} Kd6 {[%emt 0:00:00] ( -> ...Rb1+)} 44. d5 {[%emt 0:00:00]} Rb1+ {[%emt 0:00:00]} 45. Kg2 {[%emt 0:00:00]} Qxd5+ {[%emt 0:00:00]} (45... Kxd5 $2 {loses.} 46. Qd7+ (46. Qxa7 $2 {too greedy.} Qh7 $19) (46. Qd4+ Kc6 $18) 46... Kc5 47. Qc7+ (47. Qxa7 Qd5+ 48. f3 Rb2+ 49. Kh3 Qf5+ 50. Rg4 Rxh6#) (47. Qd4+ Kc6 $18) 47... Kd5 48. Qc4+ (48. Qxa7 $2 Qh7 $19) (48. Qd7+ Kc5 $18) 48... Kd6 49. Rd4+ $18) 46. Re4 {[%emt 0:00:00]} Rxh6 {[%emt 0:00:00] Weighted Error Value: White=0.53/Black=0.12 (very precise) .  Loses game:     	White=1     	---        Mistake:       	White=1     	---        Inaccurate:     	White=2     	Black=2      OK:         	White=10    	Black=7      Best:        	White=1     	Black=4      Strong:       	---       	Black=2} 0-1